Cogmind - Beta 14 @@@ ROGUE MODE // 2024.08.17 @ 12:26:22 Player: RavenousxxxDemon Result: Self-destructed Performance ------------- Evolutions (1) 500 Regions Visited (2) 400 Robots Destroyed (3) 15 Value Destroyed (97) 97 Prototype IDs (0) 0 Alien Tech Used (0) 0 Bonus (0) 0 TOTAL SCORE: 1012 Bonus ------- None Cogmind --------- Core Integrity 334/400 Matter 199/300 Energy 6/100 System Corruption 0% Temperature Cool (0) Movement Treading (145) Location -9/Materials Parts ------- > --- POWER (1) -------- (None) > --- PROPULSION (3) --- Advanced Treads Advanced Treads Advanced Treads > --- UTILITY (2) ------ Small Storage Unit Weapon Shielding > --- WEAPON (3) ------- Field Laser Field Laser Field Laser > --- INVENTORY (8) ---- Light Ion Engine Aluminum Leg Aluminum Leg EM Pulse Gun EM Pulse Gun Assault Rifle Light Assault Rifle Peak State ------------ > --- POWER ------------ Light Ion Engine > --- PROPULSION ------- Advanced Treads Advanced Treads Advanced Treads > --- UTILITY ---------- Small Storage Unit Weapon Shielding > --- WEAPON ----------- Field Laser Field Laser Field Laser > --- INVENTORY -------- Light Ion Engine Aluminum Leg Aluminum Leg EM Pulse Gun EM Pulse Gun Assault Rifle Light Assault Rifle [Rating: 21] Favorites ----------- Power Light Ion Engine Engine Light Ion Engine Propulsion Light Treads Treads Light Treads Leg Aluminum Leg Utility Small Storage Unit Storage Small Storage Unit Protection Weapon Shielding Weapon Light Assault Rifle Energy Gun Field Laser Ballistic Gun Light Assault Rifle Build | -11 -10 -9 ------- Run | Yrd Mat Mat Slots Evolved 2 | . . 2 Power . | . . . Propulsion 1 | . . 1 Utility . | . . . Weapon 1 | . . 1 Parts Attached 18 | 8 . 10 Power 1 | 1 . . Engine 1 | 1 . . Core . | . . . Reactor . | . . . Propulsion 8 | 2 . 6 Treads 5 | 2 . 3 Leg 3 | . . 3 Wheel . | . . . Hover . | . . . Flight . | . . . Utility 2 | 1 . 1 Device . | . . . Storage 1 | 1 . . Processor . | . . . Hackware . | . . . Protection 1 | . . 1 Artifact . | . . . Weapon 7 | 4 . 3 Energy Gun 4 | 1 . 3 Energy Cannon . | . . . Ballistic Gun 3 | 3 . . Ballistic Cannon . | . . . Launcher . | . . . Special Weapon . | . . . Impact Weapon . | . . . Slashing Weapon . | . . . Piercing Weapon . | . . . Special Melee Weapon . | . . . Unidentified Prototypes . | . . . Parts Lost 1 | . . 1 Power 1 | . . 1 Propulsion . | . . . Utility . | . . . Weapon . | . . . Highest Loss Streak 1 | . . 1 To Critical Strikes . | . . . Average Slot Usage (%) 84 | . 85 83 Engine 12 | . 14 9 Treads 21 | . 28 14 Leg 6 | . . 15 Storage 12 | . 14 11 Protection 4 | . . 9 Energy Gun 3 | . . 6 Ballistic Gun 23 | . 28 17 Peak Build Rating 21 | 6 6 21 Average Rating 7 | 4 6 9 On Entrance 4 | . 6 6 Naked Turns . | . . . Heaviest Build 18 | 11 11 18 Greatest Support 66 | 40 40 66 Greatest Overweight (x) . | . . . Average Overweight (x) . | . . . Largest Inventory Capacity 8 | 8 8 8 Average Capacity 7 | 6 8 8 Most Carried 8 | 5 6 8 Average Carried 5 | 3 5 6 Final Capacity 8 | 8 8 8 Final Carried 7 | 5 6 7 Class Distribution -------------------- 88% | Mutant 11% | Tank Dominant Class ---------------- Mutant | -10/Materials Mutant | -9/Materials Resources | -11 -10 -9 ----------- Run | Yrd Mat Mat Matter Collected 336 | 237 62 37 Remotely . | . . . Salvage Created 92 | . 55 37 Parts 6 | . 5 1 Haulers Intercepted . | . . . Recyclers Shooed . | . . . Parts Field Recycled . | . . . Retrieved Matter . | . . . Parts Self-Destructed . | . . . Prevented . | . . . Kills | -11 -10 -9 ------- Run | Yrd Mat Mat Combat Hostiles Destroyed 2 | . 1 1 Guns 2 | . 1 1 Classes Destroyed 2 | . 2 . Watcher 1 | . 1 . Grunt 2 | . 1 1 Best Kill Streak 2 | . 2 1 Combat Bots Only 1 | . 1 1 Max Kills in Single Turn 1 | . 1 1 Gunslinging . | . . . Exploded . | . . . Melee . | . . . Uniques/NPCs Destroyed . | . . . Combat | -11 -10 -9 -------- Run | Yrd Mat Mat Hostile Shots Fired 76 | . 12 64 Missed 24 | . 4 20 Damage Taken 574 | . 215 359 Core 188 | . 122 66 Absorbed by Shields . | . . . Redirected to Shielding 27 | . . 27 Core Remaining (%) 75 | 100 51 . Volleys Fired 20 | . 14 6 Largest 3 | . 2 3 Hottest 189 | . 40 189 Shots Fired 41 | . 28 13 Gun 41 | . 28 13 Cannon . | . . . Launcher . | . . . Special . | . . . Kinetic 34 | . 28 6 Thermal 7 | . . 7 Explosive . | . . . Electromagnetic . | . . . Robot Hit Streak 3 | . 3 2 Robot Miss Streak 7 | . 2 7 Penetration Max . | . . . Secondary Targets . | . . . Shots Hit Robots 19 | . 16 3 Core Hits 9 | . 6 3 Critical Kills . | . . . Critical Parts Destroyed . | . . . Critical Strikes . | . . . Melee Attacks . | . . . Impact . | . . . Slashing . | . . . Piercing . | . . . Sneak Attacks . | . . . Combat Hostiles . | . . . Follow-up Attacks . | . . . Damage Inflicted 222 | . 163 59 Guns 205 | . 163 42 Cannons . | . . . Explosions . | . . . Melee . | . . . Ramming 17 | . . 17 Kinetic 187 | . 163 24 Thermal 18 | . . 18 Explosive . | . . . Electromagnetic . | . . . Impact . | . . . Slashing . | . . . Piercing . | . . . Highest Corruption 2 | . 2 . Average Corruption 2 | . 2 . Corruption Purged . | . . . Corruption Blocked . | . . . Effects 3 | . 3 . Energy Discharges 1 | . 1 . Data Loss (minor) 1 | . 1 . Data Loss (major) 1 | . 1 . Overload Shots . | . . . Overflow Damage . | . . . Projectiles . | . . . Explosions . | . . . Melee . | . . . Knockbacks . | . . . Impact . | . . . Kinetic . | . . . Secondary . | . . . Self-Inflicted Damage . | . . . Shots . | . . . Rammed 1 | . . 1 Targets Rammed 2 | . . 2 Kicked 1 | . . 1 Crushed . | . . . Highest Temperature 185 | . 18 185 Average Temperature 60 | . 8 81 Received Heat Transfer 75 | . 57 18 Siege Activations . | . . . Robots Corrupted . | . . . Combat Hostiles . | . . . Parts Fried . | . . . Impact Corruptions . | . . . Robots Melted . | . . . Combat Hostiles . | . . . Parts Melted . | . . . Heat Transferred 37 | . . 37 Parts Sabotaged . | . . . Parts Stolen . | . . . Parts Stripped . | . . . Power Chain Reactions . | . . . Alert | -11 -10 -9 ------- Run | Yrd Mat Mat Peak Influence 97 | . 97 95 Initial 40 | . . 40 Average 38 | . 39 53 Maximum Alert Level . | . . . Low Security (%) 100 | 100 100 100 Level 1 . | . . . Level 2 . | . . . Level 3 . | . . . Level 4 . | . . . Level 5 . | . . . High Security . | . . . Max Security . | . . . Squads Dispatched . | . . . Investigation . | . . . Extermination . | . . . Reinforcement . | . . . Assault . | . . . Garrison . | . . . Intercept . | . . . Searches Triggered . | . . . Construction Impeded . | . . . Haulers Reinforced . | . . . Active Scanning Responses . | . . . Cargo Convoy Interrupts . | . . . Stealth | -11 -10 -9 --------- Run | Yrd Mat Mat Distress Signals . | . . . Communications Jammed . | . . . Distress Signals . | . . . Times Spotted 11 | . 6 5 Peak Tracking Total 4 | . 3 4 Tactical Retreats 1 | . . 1 Traps | -11 -10 -9 ------- Run | Yrd Mat Mat Traps Triggered 1 | . 1 . Indirectly . | . . . Trap Hack Attempts . | . . . Triggered . | . . . Disarmed . | . . . Reprogrammed . | . . . Reused . | . . . Traps Extracted . | . . . Installed . | . . . Triggered . | . . . Machines | -11 -10 -9 ---------- Run | Yrd Mat Mat Machines Disabled . | . . . Max in Single Turn . | . . . Machines Repaired . | . . . Machines Dismantled . | . . . Machines Sabotaged . | . . . Overloaded Fab Kills . | . . . Hacking | -11 -10 -9 --------- Run | Yrd Mat Mat Machines Accessed . | . . . Terminals . | . . . Fabricators . | . . . Repair Stations . | . . . Recycling Units . | . . . Scanalyzers . | . . . Garrison Access . | . . . Total Hacks . | . . . Successful . | . . . Failed . | . . . Catastrophic . | . . . Database Lockouts . | . . . Manual . | . . . Terminals . | . . . Fabricators . | . . . Repair Stations . | . . . Recycling Units . | . . . Scanalyzers . | . . . Garrison Access . | . . . Terminal Hacks . | . . . Fabricator Hacks . | . . . Repair Station Hacks . | . . . Recycling Unit Hacks . | . . . Scanalyzer . | . . . Garrison Access Hacks . | . . . Unauthorized Hacks . | . . . Terminals . | . . . Fabricators . | . . . Repair Stations . | . . . Recycling Units . | . . . Scanalyzers . | . . . Garrison Access . | . . . Data Cores Recovered . | . . . Used . | . . . Hacking Detections . | . . . Full Trace Events . | . . . Feedback Events . | . . . Feedback Blocked . | . . . Robot Schematics Acquired . | . . . Robots Built . | . . . Authchips . | . . . Time . | . . . Total Robot Build Rating . | . . . Part Schematics Acquired . | . . . Parts Built . | . . . Authchips . | . . . Time . | . . . Total Part Build Rating . | . . . Parts Repaired . | . . . Time . | . . . Parts Recycled . | . . . Recycled Matter . | . . . Retrieved Matter . | . . . Retrieved Components . | . . . Parts Scanalyzed . | . . . Part Schematics Acquired . | . . . Parts Damaged . | . . . Bothacking | -11 -10 -9 ------------ Run | Yrd Mat Mat Used RIF Installer . | . . . Robots Hacked . | . . . Non-combat . | . . . Combat . | . . . Robot Hacks Applied . | . . . Relay Couplers Released . | . . . Fabnet Peak Effective % . | . . . Robots Rewired . | . . . Allies Hacked . | . . . Hacks Repelled . | . . . Allies | -11 -10 -9 -------- Run | Yrd Mat Mat Total Allies . | . . . Largest Group . | . . . Highest-Rated Group . | . . . Highest-Rated Ally . | . . . Total Orders . | . . . Ally Attacks . | . . . Total Damage . | . . . Kills . | . . . Allies Corrupted . | . . . Allies Melted . | . . . Intel | -11 -10 -9 ------- Run | Yrd Mat Mat Robot Analysis Total . | . . . Derelict Logs Recovered . | . . . Drone Launches . | . . . Drone Recoveries . | . . . Exploration | -11 -10 -9 ------------- Run | Yrd Mat Mat Turns Passed 772 | 109 372 291 Spaces Moved 450 | 72 208 170 Core 23 | 23 . . Treads 340 | 49 208 83 Legs 87 | . . 87 Wheels . | . . . Hover . | . . . Flight . | . . . Fastest Speed 50 | 50 160 120 Average Speed 145 | 124 160 137 Slowest Speed 160 | 160 160 160 Overloaded Moves . | . . . Propulsion Burnouts . | . . . Robots Hopped . | . . . Cave-ins Triggered . | . . . Exploration Rate (%) 21 | 4 47 13 Regions Visited 2 Branch Regions . Pre-discovered Areas . | . . . Known Exits Taken . | . . . Unknown Exits Taken 2 | 1 1 . Scrap Searched . | . . . Spaces Dug . | . . . Terrain Destroyed . | . . . Melee . | . . . Projectile . | . . . AOE . | . . . Terrain Rammed . | . . . Walls Destroyed . | . . . Machines Disabled . | . . . Actions | -11 -10 -9 --------- Run | Yrd Mat Mat Total 531 | 92 222 217 Wait 15 | . . 15 Move 448 | 71 207 170 Hop . | . . . Pick Up 21 | 12 1 8 Fast Attach . | . . . Attach 12 | 6 . 6 Detach 2 | . . 2 Swap 6 | 2 . 4 Drop 5 | 1 . 4 Fire 20 | . 14 6 Melee . | . . . Ram . | . . . Kick 1 | . . 1 Crush 1 | . . 1 Escape Stasis . | . . . Rewire . | . . . Trap . | . . . Miscellaneous . | . . . Route ------- -11/Scrapyard -10/Materials (discovered 3 exits: [*Mat x3]) -9/Materials History --------- Turn | Location | Event 11 | -11/Scrapyard | Discovered new exit (range 15) 110 | -11/Scrapyard | Entered Materials 200 | -10/Materials | Discovered new exit (range 13) 301 | -10/Materials | Build established: Mutant 306 | -10/Materials | Discovered new exit (range 10) 417 | -10/Materials | Discovered new exit (range 10) 482 | -10/Materials | Entered another Materials area 482 | -9/Materials | Evolved 2 slots: Propulsion x1, Weapon x1 773 | -9/Materials | Self-destructed Last Messages --------------- 00603_ K-01 Serf cleans the Processing Tank. 00681_ K-01 Serf collects debris. 00690_ Dropped Lgt. Treads. 00695_ Acquired Adv. Treads. 00706_ Acquired Field Laser. 00707_ R-06 Scavenger collects Lgt. Treads. 00708_ Acquired Field Laser. 00711_ R-06 Scavenger collects Lgt. Treads. 00714_ Acquired Field Laser. 00724_ Dropped Aluminum Leg. 00726_ Dropped Wheel. 00726_ Acquired Adv. Treads. 00729_ R-06 Scavenger collects Wheel. 00732_ Lgt. Ion Engine destroyed. 00733_ K-01 Serf collects debris. 00733_ R-06 Scavenger collects Aluminum Leg. 00747_ K-01 Serf destroyed. 00748_ K-01 Serf collects debris. 00757_ Slammed into A-02 Transporter. Map ----- +----------------------------------------------------+ | | | | | | | | | | | | | | | | | | | | | ##???????????????????????????????????????????????? | | #???????????????????????????????????????????????? | | #???????????????????????????????????????????????? | | #???????????????????????????????????????????????? | | #??########?????????????????????????????????????? | | #??# #?????????????????????????????????????? | | #??# #?????????????????????????????????????? | | #??# #####?????????????????????????????????? | | !#??# # #?????????????????????????????????? | | ##### # #??????#######????????????????#/??? | | + # #????# #?????????????# ?? | | ##### # #????# """ """ #?????????????+ #?? | | ##### # #????# """ """ #?????????????# #?? | | ## # #????# """ """ #?????????????# #?? | | ## # #????# """ """ #?????????????# ### | | "" ## # #????# """@""" #?????????????/ !!! | | "" ## # #????# #?????????????# ^! | | "" ## # #????# #?????????????# | | "" ##+##+### ##########s#####?????????????# | | "" ## ################ | | / k =%= | | ##### ###########* | | ????######### ##############?????????### ## | | ????????????# #????????????????????????# #? | | ????????????# #????????????????????????# !! #? | | ????????????# #????????????????????????# =!! [#? | | ???????????? #????????????????????????########? | | ??????????? ????????????????????????????????? | | ?????????? # ???????????????????????????????? | | ????????? #### ##???????????????????????????????? | | ???????? ???? #????????????????????????????????? | | ???????? ????? #????????????????????????????????? | | ???????????????+#????????????????????????????????? | | ???????????????? ????????????????????????????????? | | ?????????????????????????????????????????????????? | | ?????????????????????????????????????????????????? | | ?????????????????????????????????????????????????? | | ?????????????????????????????????????????????????? | | ?????????????????????????????????????????????????? | | ?????????????????????????????????????????????????? | +----------------------------------------------------+ Best States ------------- Heat Dissipation 28 Energy Generation 10 Energy Capacity 125 Matter Stores 279 Matter Capacity 300 Sight Range 16 Terrain Scan Density 10 Weapon Shielding 33 Evasion (%) 55 Recoil Reduction 3 Item Schematics ----------------- None Robot Schematics ------------------ None Fabricated ------------ Nothing Alien Tech Used ----------------- None Achievements -------------- None Challenges ------------ None Game ------ Seed ImpulseBeamAutocannon Manual? 0 Play Time 00:08:35 Cumulative 7.9 hours Start 2024.08.17 @ 12:20:22 End 2024.08.17 @ 12:26:22 Sessions 1 Manual Loads 0 Difficulty Rogue Special Mode None Game No. 21 Rogue 21 Adventurer 0 Explorer 0 Win Type - Total 0 Types 0/0/0/0/0/0/0/0/0 Lore% 1 Gallery% 11 Achievement% 12 Wizard Run 0 Options --------- Layout 1 ASCII 0 Keyboard 0 Movement Numpad Keybinds 0 Fullscreen 1 Font 24/Smallcaps Map View 50x35 Zoom Use 0% Tactical HUD 1 Map Filters NONE Filters NONE Steam 1 RUN: 81f7711a-72b2-4700-8c0a-3274b630a140